bitfinex/quotes_ETHUSD_20250520
["timestamp","ask_amount","ask_price","bid_price","bid_amount"]
[1747712324739,3.91895138,2551.8,2551.0,0.46751815]
[1747712324902,3.91987769,2551.1,2551.0,0.46751815]
[1747712325102,3.91987769,2551.1,2551.0,17.01751815]
[1747712325303,3.91987769,2551.1,2551.0,16.55]
[1747712326601,3.91987769,2551.1,2551.0,8.55]
[1747712327539,3.92033871,2550.8,2550.7,16.918]
[1747712328035,3.92033871,2550.8,2550.7,25.468]
[1747712329438,4.77913982,2550.8,2550.7,25.468]
[1747712330009,4.77913982,2550.8,2550.7,16.918]
[1747712335051,6.11123982,2550.8,2550.7,16.918]
[1747712335249,3.92064612,2550.6,2550.5,8.552]
[1747712335475,3.92126107,2550.2,2550.1,0.05]
[1747712335623,3.92126107,2550.2,2550.1,8.602]
[1747712335950,4.70336107,2550.2,2550.1,8.602]
[1747712336648,0.7975,2551.0,2550.1,11.1546]
[1747712336853,3.92102998,2550.4,2550.1,11.1546]
[1747712337154,3.92101848,2550.4,2550.1,11.1546]
[1747712337457,3.92126107,2550.2,2550.1,8.05]
[1747712337756,3.92126107,2550.2,2550.1,8.603]
[1747712338752,3.92068944,2550.6,2550.2,0.7703]
[1747712339050,0.7985,2551.4,2550.2,0.7703]
[1747712339249,3.92033714,2550.9,2550.4,8.0]
[1747712339454,3.91957041,2551.3,2550.5,1.19210975]
[1747712339654,3.91957041,2551.3,2550.6,8.553]
[1747712340030,3.92033232,2550.9,2550.6,8.553]
[1747712340444,0.7985,2551.4,2550.5,1.19210975]
[1747712340643,3.9203586,2550.8,2550.6,8.553]
[1747712340853,3.92049241,2550.7,2550.6,8.553]
[1747712341769,3.92049241,2550.7,2550.1,3.97140929]
[1747712341770,3.92110732,2550.3,2550.1,0.05]
[1747712342065,3.92126107,2550.2,2550.1,0.05]
[1747712342276,3.92126107,2550.2,2550.1,16.603]
[1747712342847,3.92124055,2550.3,2550.1,16.603]
[1747712343057,3.92061602,2550.7,2550.2,8.768]
[1747712343222,3.92029565,2550.9,2550.4,8.0]
[1747712343427,4.74605469,2551.2,2550.6,0.768]
[1747712343676,3.91849529,2552.0,2551.2,0.768]
[1747712343873,0.8263,2552.1,2551.2,0.768]
[1747712343874,3.91957041,2551.3,2551.2,0.768]
[1747712344077,3.91957041,2551.3,2551.2,25.48]
[1747712345031,3.91948185,2551.4,2551.2,25.48]
[1747712345353,3.91932075,2551.5,2551.2,28.028]
[1747712346031,0.8263,2552.1,2551.3,0.768]
[1747712346538,3.91897121,2551.7,2551.3,8.768]
[1747712346941,3.91882238,2551.8,2551.3,8.768]
[1747712347141,3.91882238,2551.8,2551.5,8.0]
[1747712347353,0.7763,2552.4,2551.5,8.0]
[1747712347533,3.91802015,2552.4,2551.9,8.0]
[1747712347856,4.69357417,2552.8,2552.1,8.0]
[1747712347857,3.91768711,2552.6,2552.1,8.0]
[1747712348030,3.91746989,2552.7,2552.2,17.7341]
[1747712348229,3.91785463,2552.5,2552.2,17.7341]
[1747712348533,3.91788525,2552.4,2552.2,17.7341]
[1747712348728,3.91779633,2552.5,2552.2,17.7341]
[1747712348931,3.98711606,2552.9,2552.3,8.0]
[1747712349135,3.91726731,2552.8,2552.3,8.0]
[1747712349535,0.07,2552.9,2552.3,11.91795279]
[1747712349734,0.07,2552.9,2552.5,3.91758785]
[1747712349973,0.07,2552.9,2552.8,8.8081]
[1747712350142,0.07,2552.9,2552.8,10.927095]
[1747712350653,0.07,2552.9,2552.8,16.096673]
[1747712350971,0.07,2552.9,2552.8,14.750112]
[1747712351568,0.07,2552.9,2552.8,18.66737931]
[1747712352065,0.07,2552.9,2552.8,19.21737931]
[1747712352265,3.91585845,2553.8,2553.0,1.3695]
[1747712352564,3.91588783,2553.7,2553.2,8.0]
[1747712352771,3.91624686,2553.5,2553.4,8.0]
[1747712352977,3.91609953,2553.6,2553.4,8.0]
[1747712353273,3.91595833,2553.7,2553.4,8.0]
[1747712353448,3.91595833,2553.7,2553.4,10.69629763]
[1747712354482,3.91619345,2553.5,2553.4,10.69629763]
[1747712354698,3.91619345,2553.5,2553.4,8.0]
[1747712355557,3.91634683,2553.4,2553.3,24.919]
[1747712355745,3.91624803,2553.5,2553.3,33.44]
[1747712355946,3.91609998,2553.6,2553.3,33.44]
[1747712356166,3.91634683,2553.4,2553.3,36.784]
[1747712356368,3.91634683,2553.4,2553.3,33.44]
[1747712357484,3.91619345,2553.5,2553.4,8.0]
[1747712358148,3.91605805,2553.6,2553.4,8.0]
[1747712358149,3.91614237,2553.6,2553.4,8.0]
[1747712358949,3.91594836,2553.7,2553.4,8.0]
[1747712359357,0.07,2553.9,2553.5,0.7824]
[1747712359677,0.07,2553.9,2553.6,0.87824]
[1747712360048,3.9158566,2553.8,2553.7,8.52]
[1747712360681,3.91573341,2553.8,2553.7,8.52]
[1747712361579,3.98562093,2553.9,2553.7,8.52]
[1747712361784,0.07,2553.9,2553.7,8.52]
[1747712362099,3.91573341,2553.8,2553.7,8.52]
[1747712362398,0.07,2553.9,2553.8,0.8261]
[1747712362554,0.07,2553.9,2553.8,8.8261]
[1747712362754,3.98558009,2553.9,2553.8,8.8261]
[1747712362955,3.91586756,2553.8,2553.4,14.6971]
[1747712363180,3.91588964,2553.7,2553.5,8.518]
[1747712363457,3.91588964,2553.7,2553.5,12.42036288]
[1747712363864,3.91588964,2553.7,2553.6,0.32690421]
[1747712364156,3.98558009,2553.9,2553.7,8.0]
[1747712364365,3.98558009,2553.9,2553.7,8.32689141]
[1747712364975,3.91573341,2553.8,2553.7,8.32689141]
[1747712365288,3.91573341,2553.8,2553.7,8.84389141]
[1747712365654,3.91573341,2553.8,2553.7,0.32689141]
[1747712365987,3.91573341,2553.8,2553.7,8.84389141]
[1747712366157,0.07,2553.9,2553.7,8.84389141]
[1747712366358,3.9856396,2553.9,2553.7,9.72828055]
[1747712366582,0.07,2553.9,2553.7,9.72828055]
[1747712366882,3.98563928,2553.9,2553.7,9.72828055]
[1747712368192,3.91573341,2553.8,2553.7,9.72828055]
[1747712368568,3.91573341,2553.8,2553.7,8.84389141]
[1747712370403,3.91573341,2553.8,2553.7,0.32689141]
[1747712370601,3.91573341,2553.8,2553.7,8.84389141]
[1747712372773,3.91573341,2553.8,2553.7,0.32689141]
[1747712373100,3.91573341,2553.8,2553.7,8.84389141]
[1747712375703,5.27893341,2553.8,2553.7,0.32689141]
[1747712375902,4.72893341,2553.8,2553.7,8.84389141]
[1747712376309,3.91573341,2553.8,2553.7,8.84389141]
[1747712378732,4.68453341,2553.8,2553.7,8.84389141]
[1747712380595,3.91573341,2553.8,2553.7,8.84389141]
[1747712384802,3.98560866,2553.9,2553.7,8.517]
[1747712385140,3.98560866,2553.9,2553.7,9.44768]
[1747712385300,3.98560866,2553.9,2553.8,22.4553]
[1747712385301,0.07,2553.9,2553.8,22.4553]
[1747712385502,0.07,2553.9,2553.8,19.174562]
[1747712385802,0.07,2553.9,2553.8,17.889512]
[1747712386106,0.07,2553.9,2553.8,25.32214342]
[1747712386325,0.07,2553.9,2553.8,21.40641001]
[1747712387235,0.07,2553.9,2553.8,25.32214342]
[1747712387629,0.07,2553.9,2553.8,19.36026301]
[1747712387812,0.07,2553.9,2553.8,12.33399801]
[1747712388013,0.07,2553.9,2553.8,14.37372201]
[1747712388405,0.07,2553.9,2553.8,9.3071]
[1747712389112,0.07,2553.9,2553.8,17.3071]
[1747712389342,0.07,2553.9,2553.8,21.22283341]
[1747712390344,0.07,2553.9,2553.8,36.31155641]
[1747712390519,0.07,2553.9,2553.8,28.42508836]
[1747712390843,0.07,2553.9,2553.8,29.26259595]
[1747712391340,0.07,2553.9,2553.8,33.17832936]
[1747712392501,0.07,2553.9,2553.8,29.26259595]
[1747712392705,0.07,2553.9,2553.8,32.10927936]
[1747712393353,0.07,2553.9,2553.8,31.64129443]
[1747712394414,0.07,2553.9,2553.8,28.05243963]
[1747712394739,0.07,2553.9,2553.8,29.29539104]
[1747712397213,0.7847,2554.9,2554.0,0.7657]
[1747712397439,3.91490146,2554.4,2554.1,15.23357]
[1747712397741,3.91496691,2554.3,2554.2,8.0]
[1747712397938,3.91496691,2554.3,2554.2,27.797177]
[1747712398241,3.91496691,2554.3,2554.2,1.19566326]
[1747712398242,4.46496691,2554.3,2554.2,1.19566326]
[1747712398427,4.46496691,2554.3,2553.8,0.32687861]
[1747712398428,4.74488009,2553.9,2553.8,0.32687861]
[1747712398744,5.29488009,2553.9,2553.8,0.32687861]
[1747712400119,5.29488009,2553.9,2553.8,8.81587861]
[1747712400315,5.29488009,2553.9,2553.8,0.32687861]
[1747712400515,6.84164947,2553.9,2553.8,0.32687861]
[1747712400921,10.00110804,2553.9,2553.8,0.32687861]
[1747712401127,11.69962104,2553.9,2553.8,0.32687861]
[1747712401512,8.54016247,2553.9,2553.8,0.32687861]
[1747712401726,7.53987921,2553.9,2553.8,0.32687861]
[1747712401948,5.84136621,2553.9,2553.8,0.32687861]
[1747712402420,7.53987921,2553.9,2553.8,0.32687861]
[1747712403152,18.69933778,2553.9,2553.8,0.32687861]
[1747712404326,19.23626901,2553.9,2553.8,0.32687861]
[1747712404849,5.24695361,2553.2,2553.1,8.49]
[1747712405022,4.69695361,2553.2,2553.1,8.49]
[1747712405224,3.91665361,2553.2,2553.1,8.49]
[1747712405519,3.91665361,2553.2,2553.1,0.32696823]
[1747712405736,4.46665361,2553.2,2553.1,8.81696823]
[1747712407915,3.91665361,2553.2,2553.1,8.81696823]
[1747712408423,3.91665361,2553.2,2553.1,9.69866505]
[1747712408744,3.91665361,2553.2,2553.1,8.81696823]
[1747712409754,5.23013014,2553.7,2553.1,8.81696823]
[1747712409755,0.7641,2553.7,2553.1,8.81696823]
[1747712409932,3.91665361,2553.2,2553.1,16.81696823]
[1747712410847,3.91665361,2553.2,2553.1,16.49]
[1747712411057,3.916389,2553.4,2553.1,16.49]
[1747712411220,3.91573341,2553.8,2553.2,9.649]
[1747712411419,3.91646688,2553.4,2553.2,9.649]
[1747712411651,3.91623648,2553.5,2553.2,9.649]
[1747712411852,3.91623648,2553.5,2553.3,0.7762]
[1747712412052,3.91623648,2553.5,2553.4,0.24252]
[1747712412353,0.55,2554.1,2553.3,0.7762]
[1747712412517,0.7689,2554.3,2553.4,8.03916255]
[1747712412718,0.7689,2554.6,2553.5,0.7762]
[1747712413072,3.9146604,2554.5,2553.9,0.7762]
[1747712413252,10.14,2554.8,2554.0,8.93717936]
[1747712413253,3.91501362,2554.3,2554.0,8.93717936]
[1747712413425,3.91435393,2554.7,2554.0,8.93717936]
[1747712413617,3.91520525,2554.2,2554.0,8.93717936]
[1747712413816,3.91503343,2554.3,2554.0,8.93717936]
[1747712414116,0.7889,2554.9,2554.1,8.0]
[1747712414323,3.91435393,2554.7,2554.3,0.7762]
[1747712414524,0.02,2554.9,2554.3,12.69108246]
[1747712414762,0.02,2554.9,2554.3,4.69108246]
[1747712415054,0.02,2554.9,2554.4,3.91472847]
[1747712415256,0.02,2554.9,2554.6,8.0]
[1747712415464,0.02,2554.9,2554.7,19.02225114]
[1747712415831,0.02,2554.9,2554.8,8.0]
[1747712416161,0.02,2554.9,2554.8,17.089573]
[1747712416344,0.02,2554.9,2554.2,1.69371794]
[1747712416345,3.91446089,2554.7,2554.2,8.467]
[1747712416550,3.91496691,2554.3,2554.2,16.467]
[1747712417061,3.91496691,2554.3,2554.2,8.0]
[1747712417262,3.9148571,2554.4,2554.2,16.467]
[1747712417442,3.91496691,2554.3,2554.2,18.1137]
[1747712417762,3.91473617,2554.5,2554.2,18.8847]
[1747712418080,3.91472859,2554.5,2554.2,18.8847]
[1747712418259,3.91481365,2554.4,2554.3,8.466]
[1747712418448,3.91496691,2554.3,2554.2,8.0]
[1747712418662,0.7994,2554.8,2554.2,16.466]
[1747712418663,4.71371508,2554.8,2554.2,16.466]
[1747712418841,3.91489653,2554.4,2554.2,16.466]
[1747712419224,3.91472305,2554.5,2554.2,16.466]
[1747712419431,3.91481365,2554.4,2554.3,1.6466]
[1747712419628,3.91496691,2554.3,2554.2,16.466]
[1747712419841,3.91474346,2554.5,2554.2,16.466]
[1747712420045,3.91485878,2554.4,2554.2,16.466]
[1747712420269,3.91438303,2554.7,2554.3,8.0]
[1747712420454,0.02,2554.9,2554.3,8.0]
[1747712420656,3.91473779,2554.5,2554.3,9.6466]
[1747712420967,3.91463175,2554.6,2554.3,9.6466]
[1747712421172,3.91470131,2554.5,2554.3,9.6466]
[1747712421470,3.91481365,2554.4,2554.3,9.6466]
[1747712421768,3.9147291,2554.5,2554.3,9.6466]
[1747712422573,3.91481365,2554.4,2554.3,9.6466]
[1747712422773,3.91481365,2554.4,2554.3,8.0]
[1747712424158,3.93414064,2554.9,2554.3,8.0]
[1747712424159,3.91462183,2554.6,2554.3,8.0]
[1747712424472,3.91481365,2554.4,2554.3,8.0]
[1747712424842,3.91420072,2554.8,2554.3,8.0]
[1747712425180,3.91434912,2554.8,2554.4,0.7805]
[1747712425374,3.91434912,2554.8,2554.5,17.22978904]
[1747712425869,3.91435393,2554.7,2554.6,0.32677625]
[1747712426069,3.91435393,2554.7,2554.6,16.79177625]
[1747712427250,3.91435393,2554.7,2554.6,16.79077625]
[1747712429068,4.69925393,2554.7,2554.6,8.79077625]
[1747712429263,5.48411147,2554.7,2554.6,8.79077625]
[1747712430242,4.69925393,2554.7,2554.6,8.79077625]
[1747712432180,3.91435393,2554.7,2554.6,8.79077625]
[1747712440611,4.46435393,2554.7,2554.6,0.32677625]
[1747712440791,5.29675393,2554.7,2554.6,0.32677625]
[1747712441491,3.91512019,2554.2,2554.1,8.464]
[1747712442074,3.91512019,2554.2,2554.1,8.79084022]
[1747712442278,5.21912019,2554.2,2554.1,0.32684022]
[1747712442761,13.4111022,2554.2,2554.1,0.32684022]
[1747712443066,5.21973341,2553.8,2553.7,0.46725358]
[1747712443266,9.29272517,2553.8,2553.7,0.46725358]
[1747712443469,27.43272517,2553.8,2553.7,0.46725358]
[1747712443654,35.88072517,2553.8,2553.7,0.46725358]
[1747712444094,16.2732666,2553.8,2553.7,0.46725358]
[1747712444293,15.35973341,2553.8,2553.7,0.46725358]
[1747712444906,18.51919198,2553.8,2553.7,0.46725358]
[1747712445217,18.51919198,2553.8,2552.9,8.45]
[1747712445218,3.91696043,2553.0,2552.9,8.45]
[1747712445516,3.91742077,2552.7,2552.6,0.8128]
[1747712445687,3.91742077,2552.7,2552.6,17.58983228]
[1747712446216,3.91742077,2552.7,2552.6,8.77703228]
[1747712447387,3.91742077,2552.7,2552.6,8.77803228]
[1747712449613,3.91742077,2552.7,2552.6,9.65583551]
[1747712450290,3.91742077,2552.7,2552.6,8.77803228]
[1747712450823,3.91673067,2553.2,2552.6,16.77803228]
[1747712450994,3.91742077,2552.7,2552.6,16.77803228]
[1747712451327,3.91742077,2552.7,2552.6,17.53423228]
[1747712451519,3.91704661,2553.0,2552.7,8.0]
[1747712451722,3.91688532,2553.1,2552.9,0.8289]
[1747712451926,3.91711387,2552.9,2552.8,10.52072]
[1747712452228,3.91711387,2552.9,2552.8,16.452]
[1747712452529,3.91645534,2553.4,2552.8,16.452]
[1747712452530,3.91700329,2553.0,2552.8,16.452]
[1747712452893,14.82620683,2553.8,2553.0,0.8289]
[1747712452894,3.91684485,2553.1,2553.0,0.8289]
[1747712453119,3.91684485,2553.1,2553.0,17.7379]
[1747712453427,3.91684485,2553.1,2553.0,20.35689]
[1747712453816,3.91684485,2553.1,2553.0,16.909]
[1747712455496,3.91684485,2553.1,2553.0,17.23598104]
[1747712462347,0.55,2553.8,2553.0,17.23598104]
[1747712462348,3.91585722,2553.8,2553.0,17.23598104]
[1747712462546,3.91522357,2554.2,2553.1,0.7758]
[1747712462713,3.91575767,2553.8,2553.4,0.7758]
[1747712462916,3.91558323,2553.9,2553.5,8.452]
[1747712463100,3.9160401,2553.6,2553.5,8.452]
[1747712463306,14.8411445,2554.5,2553.4,8.452]
[1747712463307,3.91581619,2553.8,2553.4,8.452]
[1747712463506,3.91619345,2553.5,2553.4,8.452]
[1747712464022,11.91619345,2553.5,2553.4,8.452]
[1747712464936,13.25839345,2553.5,2553.4,8.452]
[1747712465120,3.91680701,2553.1,2553.0,17.23598104]
[1747712465317,3.91680701,2553.1,2553.0,25.68798104]
[1747712465715,11.91680701,2553.1,2553.0,17.23598104]
[1747712465917,14.04235504,2553.1,2553.0,0.32698104]
[1747712475569,14.44179754,2553.1,2553.0,0.32698104]
[1747712475945,5.49235504,2553.1,2553.0,0.32698104]
[1747712476156,3.91680701,2553.1,2553.0,0.32698104]
[1747712476766,4.46680701,2553.1,2553.0,0.32698104]
[1747712477171,3.91680701,2553.1,2553.0,0.32698104]
[1747712477464,4.46680701,2553.1,2553.0,0.32698104]
[1747712477668,5.30515504,2553.1,2553.0,0.32698104]
[1747712478336,4.46680701,2553.1,2553.0,0.32698104]
[1747712480384,3.91696043,2553.0,2552.9,8.435]
[1747712483681,3.91696043,2553.0,2552.9,9.2478]
[1747712484200,14.83108483,2553.9,2552.9,9.2478]
[1747712484201,3.91683721,2553.1,2552.9,9.2478]
[1747712484479,4.67511481,2554.1,2553.0,0.7567]
[1747712484662,3.91657492,2553.3,2553.1,1.74007]
[1747712484859,0.39154148,2554.0,2553.2,16.913]
[1747712485070,3.91558009,2553.9,2553.3,0.8209]
[1747712485253,3.91619345,2553.5,2553.4,8.434]
[1747712485649,3.91634683,2553.4,2553.3,0.8209]
[1747712485853,3.91634683,2553.4,2553.3,9.2549]
[1747712486284,3.91650021,2553.3,2553.2,16.913]
[1747712486474,3.91650021,2553.3,2553.2,25.347]
[1747712487487,3.91650021,2553.3,2553.2,25.67395543]
[1747712489054,4.46650021,2553.3,2553.2,25.67395543]
[1747712489291,3.91650021,2553.3,2553.2,25.67395543]
[1747712490192,4.46650021,2553.3,2553.2,25.67395543]
[1747712490560,3.91650021,2553.3,2553.2,25.67395543]
[1747712491590,3.91650021,2553.3,2553.2,26.50595543]
[1747712491777,3.91650021,2553.3,2553.2,26.179]
[1747712491983,3.91650021,2553.3,2553.2,28.7969]
[1747712492507,4.46650021,2553.3,2552.9,0.832]
[1747712492672,3.91742077,2552.7,2552.6,9.265]
[1747712492865,3.91742077,2552.7,2552.6,8.76003228]
[1747712493059,4.46742077,2552.7,2552.6,8.76003228]
[1747712493290,5.30589176,2552.7,2552.6,8.76003228]
[1747712497103,5.30589176,2552.7,2552.6,8.433]
[1747712499575,3.91818822,2552.2,2552.1,16.98]
[1747712499775,4.46818822,2552.2,2552.1,25.74209635]
[1747712500602,4.46818822,2552.2,2552.1,17.30709635]
[1747712500768,4.95916809,2552.2,2552.1,17.30709635]
[1747712501114,5.71896809,2552.2,2552.1,0.39709635]
[1747712501398,5.71896809,2552.2,2552.1,0.07]
[1747712504103,3.91818822,2552.2,2552.1,0.07]
[1747712504809,3.91753754,2552.7,2552.2,0.7519]
[1747712504981,3.9178812,2552.4,2552.3,8.415]
[1747712506383,3.91803471,2552.3,2552.2,17.6689]
[1747712506784,4.46803471,2552.3,2552.2,25.332]
[1747712506995,4.46803471,2552.3,2552.2,25.65908353]
[1747712507595,4.46803471,2552.3,2552.2,17.24408353]
[1747712507785,4.46803471,2552.3,2552.2,25.65808353]
[1747712508606,3.91803471,2552.3,2552.2,25.65808353]
[1747712509405,3.91803471,2552.3,2552.2,26.44888353]
[1747712509808,3.91803471,2552.3,2552.2,25.65808353]
[1747712510118,4.46803471,2552.3,2552.2,25.331]
[1747712512389,4.46803471,2552.3,2552.2,25.65808353]
[1747712513271,15.5274063,2552.3,2552.2,17.24408353]
[1747712513536,15.5274063,2552.3,2552.2,26.05978353]
[1747712513537,3.91803471,2552.3,2552.2,26.05978353]
[1747712513892,3.91803471,2552.3,2552.2,34.47378353]
[1747712514091,3.91803471,2552.3,2552.2,26.47378353]
[1747712514294,3.91803471,2552.3,2552.2,25.65808353]
[1747712514514,4.46803471,2552.3,2552.2,25.65808353]
[1747712514925,4.46803471,2552.3,2552.2,25.331]
[1747712515614,4.46803471,2552.3,2552.2,16.917]
[1747712515814,5.3066263,2552.3,2552.2,16.917]
[1747712516021,5.3066263,2552.3,2552.2,17.24408353]
[1747712516022,4.46803471,2552.3,2552.2,17.24408353]
[1747712519918,3.91803471,2552.3,2552.2,17.24408353]
[1747712520635,4.46803471,2552.3,2552.2,17.24408353]
[1747712522112,15.41143471,2552.3,2552.2,0.32708353]
[1747712523135,4.46818822,2552.2,2552.1,8.485]
[1747712523528,4.46818822,2552.2,2552.1,0.07]
[1747712523529,26.58154679,2552.2,2552.1,0.07]
[1747712528366,34.99754679,2552.2,2552.1,0.07]
[1747712529046,34.99754679,2552.2,2551.2,8.415]
[1747712529047,4.46957041,2551.3,2551.2,8.415]
[1747712529368,14.53957041,2551.3,2551.2,8.415]
[1747712531476,3.91972405,2551.2,2551.1,0.07]
[1747712531641,3.91972405,2551.2,2551.1,8.487]
[1747712531969,3.91972405,2551.2,2551.1,0.07]
[1747712532175,3.91972405,2551.2,2551.1,8.487]
[1747712535373,4.46972405,2551.2,2551.1,9.3189]
[1747712535876,16.02088858,2551.2,2551.1,0.07]
[1747712536045,16.80048858,2551.2,2551.1,0.07]
[1747712536871,20.91948858,2551.2,2551.1,0.07]
[1747712537073,16.80048858,2551.2,2551.1,0.07]
[1747712542193,13.64103001,2551.2,2551.1,0.07]
[1747712544735,13.09103001,2551.2,2551.1,0.07]
[1747712544898,12.31143001,2551.2,2551.1,0.07]
[1747712545097,12.86143001,2551.2,2551.1,0.07]
[1747712549525,16.82128858,2551.2,2551.1,0.07]
[1747712550717,17.40455125,2551.2,2551.1,0.07]
[1747712552132,21.52355125,2551.2,2551.1,0.07]
[1747712552627,20.94028858,2551.2,2551.1,0.07]
[1747712552796,16.82128858,2551.2,2551.1,0.07]
[1747712552999,13.66183001,2551.2,2551.1,0.07]
[1747712554404,4.31143001,2551.2,2551.1,0.07]
[1747712554946,3.14402715,2551.2,2551.1,0.8708]
[1747712555228,3.91957041,2551.3,2551.1,0.8708]
[1747712555436,3.91916343,2551.6,2551.3,0.8008]
[1747712555599,3.91926317,2551.5,2551.3,0.8008]
[1747712555799,3.91926317,2551.5,2551.4,1.72068]
[1747712557115,1.94883098,2552.1,2551.5,0.7603]
[1747712557338,3.91910957,2551.6,2551.5,0.7603]
[1747712559059,3.91910957,2551.6,2551.5,1.08747327]
[1747712559225,3.91910957,2551.6,2551.5,2.0882086]
[1747712564858,3.91910957,2551.6,2551.5,1.08747327]
[1747712571073,12.46910957,2551.6,2551.5,0.32717327]
[1747712571768,12.46910957,2551.6,2551.2,8.369]
[1747712571769,4.46957041,2551.3,2551.2,8.369]
[1747712573038,12.46957041,2551.3,2551.2,8.369]
[1747712573369,12.46957041,2551.3,2551.1,0.07]
[1747712573370,4.46972405,2551.2,2551.1,0.07]
[1747712573739,13.29472405,2551.2,2551.1,0.07]
[1747712574352,13.87798672,2551.2,2551.1,0.07]
[1747712574867,14.34985962,2551.2,2551.1,0.07]
[1747712575571,14.34985962,2551.2,2550.1,0.51725358]
[1747712575572,4.47126107,2550.2,2550.1,0.05]
[1747712575870,13.38793939,2550.2,2550.1,0.05]
[1747712577377,14.19163939,2550.2,2550.1,0.05]
[1747712577672,13.27496107,2550.2,2550.1,0.05]
[1747712577971,4.47126107,2550.2,2550.1,0.05]
[1747712578568,3.92126107,2550.2,2550.1,0.05]
[1747712578876,4.47126107,2550.2,2550.1,0.05]
[1747712581374,3.92126107,2550.2,2550.1,8.423]
[1747712581555,3.92126107,2550.2,2550.1,9.2653]
[1747712581944,3.92117959,2550.3,2550.1,9.2653]
[1747712582144,3.92117959,2550.3,2550.2,0.7761]
[1747712582357,3.92098426,2550.4,2550.2,0.7761]
[1747712582644,3.92074281,2550.6,2550.2,8.7761]
[1747712582851,3.9204296,2550.8,2550.3,1.80414]
[1747712583051,3.91926317,2551.5,2550.4,0.7724]
[1747712583255,0.8113,2551.6,2550.4,0.7724]
[1747712583256,3.92062851,2550.7,2550.4,0.7724]
[1747712584142,3.92035504,2550.8,2550.4,0.7724]
[1747712584143,3.92079984,2550.5,2550.4,0.7724]
[1747712584348,3.92079984,2550.5,2550.4,10.203054]
[1747712585741,3.92079984,2550.5,2550.4,9.1454]
[1747712587645,3.92079984,2550.5,2550.4,9.47271438]
[1747712588046,3.92068136,2550.6,2550.4,9.47271438]
[1747712588047,3.92066349,2550.6,2550.4,9.47271438]
[1747712588261,3.91972405,2551.2,2550.5,0.32730155]
[1747712588483,3.92047584,2550.8,2550.5,1.27457171]
[1747712588675,3.92047584,2550.8,2550.5,9.27457171]
[1747712590795,3.92029971,2550.9,2550.6,0.7915]
[1747712590949,3.91940295,2551.5,2550.6,0.7915]
[1747712591147,3.91998088,2551.1,2550.8,0.7574]
[1747712591350,3.91980248,2551.2,2550.9,9.24874]
[1747712592048,3.91963738,2551.3,2551.1,0.7914]
[1747712592547,3.91972405,2551.2,2551.1,0.7914]
[1747712592749,3.91929416,2551.5,2551.1,0.7914]
[1747712593000,3.91851627,2552.0,2551.2,9.77184]
[1747712593148,4.72953147,2552.2,2551.2,9.77184]
[1747712593350,3.91945016,2551.4,2551.2,9.77184]
[1747712595402,3.91957041,2551.3,2551.2,1.77184]
[1747712595576,3.91957041,2551.3,2551.2,10.14284]
[1747712595773,3.91957041,2551.3,2551.2,10.47005174]
[1747712596175,3.91955913,2551.4,2551.2,10.47005174]
[1747712596380,3.91957041,2551.3,2551.2,8.69821174]
[1747712596693,3.91957041,2551.3,2551.2,8.67021174]
[1747712598769,3.91953013,2551.4,2551.2,8.67021174]
[1747712598969,3.91953013,2551.4,2551.3,0.32719892]
[1747712599176,3.91953013,2551.4,2551.3,1.27335881]
[1747712599406,3.91941679,2551.4,2551.3,1.27335881]
[1747712600102,3.91941679,2551.4,2551.3,8.66919892]
[1747712602206,4.46941679,2551.4,2551.3,8.66919892]
[1747712602507,3.91941679,2551.4,2551.3,8.66919892]
[1747712602801,3.91941679,2551.4,2551.3,9.45569892]
[1747712604617,3.91941679,2551.4,2551.3,8.66919892]
[1747712606292,3.91941679,2551.4,2551.3,8.342]
[1747712607621,0.55,2551.8,2551.3,8.342]
[1747712607798,0.3993669,2552.3,2551.3,8.342]
[1747712607799,3.91926113,2551.6,2551.4,0.7951]
[1747712608115,3.91926317,2551.5,2551.4,0.7951]
[1747712608590,0.55,2552.1,2551.4,0.7951]
[1747712608591,3.91911798,2551.6,2551.4,0.7951]
[1747712608797,3.91911798,2551.6,2551.5,0.91371]
[1747712610120,3.91901715,2551.7,2551.5,0.91371]
[1747712611040,0.8127,2552.6,2551.5,1.24088327]
[1747712611191,3.91811101,2552.3,2551.9,0.795]
[1747712611385,3.91811101,2552.3,2552.0,25.263]
[1747712611584,3.91811101,2552.3,2552.1,2.6058]
[1747712612728,3.91818822,2552.2,2552.1,2.6058]
[1747712613508,3.91799421,2552.4,2552.2,0.7988]
[1747712613705,3.91803471,2552.3,2552.2,0.7988]
[1747712613907,3.91803471,2552.3,2552.2,1.12588353]
[1747712614102,3.91795171,2552.4,2552.2,4.02535188]
[1747712614924,3.91803471,2552.3,2552.2,4.02535188]
[1747712615409,3.91795382,2552.4,2552.2,12.02535188]
[1747712615919,3.91803471,2552.3,2552.2,12.02535188]
[1747712616326,0.55,2552.8,2552.2,12.02535188]
[1747712616635,3.91785976,2552.5,2552.3,1.52960591]
[1747712616817,3.9176706,2552.6,2552.3,1.52960591]
[1747712616999,0.55,2552.8,2552.3,1.52960591]
[1747712617404,0.55,2552.8,2552.4,0.3270579]
[1747712617610,3.91772771,2552.5,2552.4,1.64984404]
[1747712617832,3.91772771,2552.5,2552.4,9.98984404]
[1747712619705,0.07,2552.9,2552.4,9.98984404]
[1747712620337,3.91772771,2552.5,2552.4,9.98984404]
[1747712620644,3.9176568,2552.6,2552.4,9.98984404]
[1747712620849,3.9174256,2552.7,2552.5,8.9989844]
[1747712621007,3.91757423,2552.6,2552.5,8.9989844]
[1747712624640,3.91757423,2552.6,2552.5,9.8067844]
[1747712624943,3.91748326,2552.7,2552.5,9.8067844]
[1747712625145,3.91748326,2552.7,2552.6,1.94695705]
[1747712626140,3.91757423,2552.6,2552.2,0.7819]
[1747712626332,3.9178812,2552.4,2552.3,8.308]
[1747712627238,3.91834175,2552.1,2552.0,16.922]
[1747712627544,3.91834175,2552.1,2552.0,25.23]
[1747712627846,4.46834175,2552.1,2552.0,16.922]
[1747712628035,4.46834175,2552.1,2552.0,25.23]
[1747712631348,4.46834175,2552.1,2552.0,16.922]
[1747712631640,4.46834175,2552.1,2552.0,25.231]
[1747712634259,4.46834175,2552.1,2551.0,6.34025358]